[Event "Serbian League 2024"]
[Site "Bajina Basta"]
[Date "2024.09.30"]
[Round "4.28"]
[White "Brenjo, Slavisa"]
[Black "Ivanisevic, Ivan"]
[Result "1/2-1/2"]
[ECO "C60"]
[WhiteElo "2376"]
[BlackElo "2519"]
[Annotator "TA"]
[PlyCount "57"]
[EventDate "2024.09.26"]
[EventType "team-tourn"]
[EventCountry "SRB"]
[SourceTitle "playchess.com"]
[Source "ChessBase"]
[SourceQuality "1"]
[TimeControl "40/5400+30:1800+30"]

{[%evp 9,57,32,32,15,25,13,45,57,53,38,47,16,18,10,15,17,13,8,14,14,19,20,16,16,17,15,21,4,9,14,31,34,25,25,46,46,31,31,19,35,27,22,30,11,17,18,29,24,21,0]} 1. e4 {[%emt 0:02:02]} e5 {[%emt 0:00:07]} 2. Nf3 {[%emt 0:00:25]} Nc6 {[%emt 0:00:07]} 3. Bb5 {[%emt 0:00:29][%cal Bf1b5,Bb5a4,Ba4b3][%mdl 32]} a6 {[%emt 0:00:07]} 4. Ba4 {[%emt 0:01:02]} Nge7 {[%emt 0:00:08]} 5. O-O {[%emt 0:03:43]} Ng6 {[%emt 0:04:02]} 6. d4 {[%emt 0:07:08]} exd4 {[%emt 0:01:42]} 7. Nxd4 {[%emt 0:15:09]} Nxd4 {[%emt 0:03:46]} 8. Qxd4 {[%emt 0:00:30] White is slightly better.} b5 {[%emt 0:00:18]} 9. Bb3 {[%emt 0:00:10]} Bb7 {[%emt 0:00:06] [#] Dodges Qd5. ...c5 is the strong threat.} 10. Qd3 {[%emt 0:04:24]} Bc5 {[%emt 0:04:59]} 11. Nc3 {[%emt 0:02:03]} O-O {[%emt 0:02:32]} 12. a4 {[%emt 0:04:10]} b4 {[%emt 0:12:46]} 13. Nd5 {[%emt 0:01:00]} d6 {[%emt 0:02:29]} 14. Be3 {[%emt 0:10:17]} Ne5 {[%emt 0:10:54]} 15. Qd2 {[%emt 0:03:53]} Bxe3 {[%emt 0:02:51]} 16. Qxe3 {[%emt 0:00:34]} a5 {[%emt 0:02:32]} 17. Rad1 {[%emt 0:10:27]} Re8 {[%emt 0:05:49]} 18. Rfe1 {[%emt 0:05:01]} Nd7 {[%emt 0:06:15]} 19. Qg3 {[%emt 0:04:42]} Nf6 {[%emt 0:11:43]} 20. Nxf6+ {[%emt 0:04:23]} Qxf6 {[%emt 0:00:06] [#]} 21. e5 {[%emt 0:00:31]} Qg6 {[%emt 0:06:59]} ({But not} 21... dxe5 22. Rd7 Re7 23. Rxe7 Qxe7 24. Rxe5 $16 (24. Qxe5 Qxe5 25. Rxe5 Kf8 $16)) (21... Qe7 22. Qg4) 22. Qxg6 {[%emt 0:11:59]} hxg6 {[%emt 0:00:06]} 23. exd6 {[%emt 0:00:12]} cxd6 {[%emt 0:00:11]} 24. Rxe8+ {[%emt 0:00:28]} Rxe8 $14 {[%emt 0:00:07] KRB-KRB} 25. f3 {[%emt 0:00:12]} (25. Rxd6 $2 Re1#) 25... Rd8 {[%emt 0:00:59]} 26. Kf2 {[%emt 0:00:16]} Kf8 {[%emt 0:00:25]} 27. Rd4 {[%emt 0:01:00]} d5 {[%emt 0:04:15]} 28. Ke3 {[%emt 0:01:08]} Ke7 {[%emt 0:00:07]} 29. h4 {[%emt 0:00:38] Weighted Error Value: White=0.03 (flawless) /Black=0.05 (flawless) .  Inaccurate:     	White=1     	Black=1      OK:         	White=13    	Black=10} 1/2-1/2

[Event "Serbian League 2024"]
[Site "Bajina Basta"]
[Date "2024.09.30"]
[Round "4.30"]
[White "Gagic, Milan A"]
[Black "Miljkovic, Miroslav D"]
[Result "1/2-1/2"]
[ECO "C79"]
[WhiteElo "2284"]
[BlackElo "2420"]
[Annotator "TA"]
[PlyCount "40"]
[EventDate "2024.09.26"]
[EventType "team-tourn"]
[EventCountry "SRB"]
[SourceTitle "playchess.com"]
[Source "ChessBase"]
[SourceQuality "1"]
[TimeControl "40/5400+30:1800+30"]

{[%evp 11,40,27,46,17,15,20,20,21,25,23,11,0,2,-14,-10,-12,0,0,0,0,0,0,0,0,0,0,55,48,84,75,81]} 1. e4 {[%emt 0:00:07]} e5 {[%emt 0:00:08]} 2. Nf3 {[%emt 0:00:26]} Nc6 {[%emt 0:00:09]} 3. Bb5 {[%emt 0:00:27]} a6 {[%emt 0:00:36]} 4. Ba4 {[%emt 0:01:53]} d6 {[%emt 0:00:39]} 5. O-O {[%emt 0:01:19]} Bd7 {[%emt 0:00:15]} 6. d4 {[%emt 0:02:55]} Nf6 {[%emt 0:05:33]} 7. dxe5 {[%emt 0:06:10]} Nxe5 {[%emt 0:08:26]} 8. Bxd7+ {[%emt 0:01:47]} Qxd7 {[%emt 0:00:45]} 9. Nc3 {[%emt 0:02:07] The position is equal.} Be7 {[%emt 0:02:21]} 10. Nxe5 {[%emt 0:10:20]} dxe5 {[%emt 0:00:09]} 11. Bg5 {[%emt 0:02:31]} c6 {[%emt 0:32:25]} 12. Bxf6 {[%emt 0:02:22]} Bxf6 {[%emt 0:01:25]} 13. Qe2 {[%emt 0:05:15]} Rd8 {[%emt 0:04:22]} 14. Rfd1 {[%emt 0:00:55]} Qc7 {[%emt 0:00:08]} 15. Qc4 {[%emt 0:10:32][%cal Oc3d5]} O-O {[%emt 0:08:11]} 16. Nd5 {[%emt 0:10:38]} Qd6 {[%emt 0:01:06]} 17. Nxf6+ {[%emt 0:01:56]} Qxf6 {[%emt 0:02:26]} 18. Qb4 {[%emt 0:01:56]} Rxd1+ {[%emt 0:02:52]} (18... b5 $11) 19. Rxd1 $14 {[%emt 0:00:03]} Rd8 {[%emt 0:00:13] [#]} 20. Rd3 {[%emt 0:08:47]} b5 {[%emt 0:04:40] Weighted Error Value: White=0.04 (flawless) /Black=0.18 (very precise) .  Mistake:       	---       	Black=1      Inaccurate:     	---       	Black=1      OK:         	White=8     	Black=3} 1/2-1/2

[Event "Serbian League 2024"]
[Site "Bajina Basta"]
[Date "2024.09.30"]
[Round "4.31"]
[White "Kuybokarov, Temur"]
[Black "Nadj Hedjesi, Balind"]
[Result "1-0"]
[ECO "B12"]
[WhiteElo "2562"]
[BlackElo "2212"]
[Annotator "TA"]
[PlyCount "53"]
[EventDate "2024.09.26"]
[EventType "team-tourn"]
[EventCountry "SRB"]
[SourceTitle "playchess.com"]
[Source "ChessBase"]
[SourceQuality "1"]
[TimeControl "40/5400+30:1800+30"]

{[%evp 9,53,-13,11,1,17,-19,27,-11,-7,-36,0,-1,1,-29,41,14,0,-10,20,33,13,13,218,48,79,78,81,76,161,150,142,200,243,163,329,294,534,269,584,613,560,557,865,860,853,850]} 1. e4 {[%emt 0:00:06]} c6 {[%emt 0:05:44]} 2. d4 {[%emt 0:00:12]} d5 {[%emt 0:00:22]} 3. e5 {[%emt 0:00:13]} c5 {[%emt 0:00:11]} 4. Nf3 {[%emt 0:00:16]} cxd4 {[%emt 0:00:15]} 5. Qxd4 {[%emt 0:00:19]} Nc6 {[%emt 0:00:13]} 6. Qf4 {[%emt 0:00:10] B12: Caro-Kann: Doorschuif Variant.} e6 $1 {[%emt 0:00:14] Sterk} 7. Nc3 {[%emt 0:00:24] OK} Nb4 {[%emt 0:03:51] Fout (0.5)} (7... Nge7 $1) 8. Kd1 $146 {[%emt 0:00:46] Onnauwkeurig. Wit heeft hier iets.} ({Predecessor:} 8. Bd3 Nxd3+ 9. cxd3 Ne7 10. h4 Ng6 11. Qg3 h5 12. Bg5 Qb6 13. O-O Bd7 14. Rfc1 {0-1 Esipenko,A (2704)-Daneshvar,B (2582) Sharjah Masters 7th 2024 (2)}) 8... h6 {[%emt 0:03:36] OK} 9. h4 {[%emt 0:04:13][%cal Bh2h4,Bh4h5][%mdl 32] EV=11.89. Onnauwkeurig} a6 {[%emt 0:05:22] Onnauwkeurig} 10. a3 {[%emt 0:04:47] OK} Nc6 {[%emt 0:00:10] OK} 11. Bd3 {[%emt 0:00:11] Onnauwkeurig} {Zwart zou moeten proberen} Qc7 {[%emt 0:04:31] Fout (0.7)} (11... h5 $1 $11) 12. h5 {[%emt 0:06:26] Onnauwkeurig} Nge7 $1 {[%emt 0:04:10] Sterk} 13. Bd2 {[%emt 0:08:39] OK} Bd7 {[%emt 0:06:44] Onnauwkeurig} 14. Re1 {[%emt 0:05:16] OK} g5 {[%emt 0:05:32] OK} 15. hxg6 {[%emt 0:01:03] Beste (Gemakkelijk)} fxg6 {[%emt 0:04:45] [#] en Zwart blijft veilig. Verliest partij (2.0)} (15... Nxg6 $11 16. Bxg6 fxg6) {Wit moet spelen} 16. b4 $2 {[%emt 0:21:51] Gemiste overwinning (1.7)} (16. Qf6 $18 Rg8 17. Nxd5 exd5 18. e6) 16... Bg7 $14 {[%emt 0:13:05] Beste (Gemakkelijk)} 17. b5 $36 {[%emt 0:02:05][%mdl 2048] Wit heeft controle. Wit is veel actiever. OK} Nd8 {[%emt 0:03:41]} 18. Qg3 {[%emt 0:03:21]} g5 {[%emt 0:05:29] OK} 19. Nd4 {[%emt 0:01:16] Zwart moet nu f4 voorkomen. OK} Nf7 {[%emt 0:04:31]} 20. f4 {[%emt 0:00:27] OK} Rg8 {[%emt 0:14:18] [#] Dreigt te winnen met ...gxf4.} (20... O-O 21. fxg5 hxg5 (21... Bxe5 22. Qh4 $14) 22. Qh2) 21. Qg4 {[%emt 0:00:42] Onnauwkeurig} (21. fxg5 Bxe5 22. Qh4 Bg3 $17 (22... Nxg5 23. b6 $15) (22... hxg5 23. Qg4 $17)) 21... Qc8 $2 {[%emt 0:08:01] was hoogst noodzakelijk. Fout (1.7)} (21... gxf4 22. Nxe6 Bxe6 23. Qxe6 Qc8 24. Qxc8+ Rxc8) 22. Rb1 {[%emt 0:02:03] Sterke dreiging met f5.} ({Zwakker is} 22. fxg5 Nxe5 23. Qh5+ Nf7 $16) 22... Bh8 $2 {[%emt 0:05:55] Is een verstandige zet. Fout (2.4)} (22... h5 23. Qxh5 gxf4) 23. Rf1 {[%emt 0:03:09] Onnauwkeurig} a5 $2 {[%emt 0:00:40] Is een grotere uitdaging. Fout (3.1)} (23... gxf4 24. Qxf4 Rf8 (24... Nxe5 $2 {slaat de verkeerde figuur.} 25. Bh7 $18)) 24. Na4 $18 {[%emt 0:00:51] OK. Wit is duidelijk aan het winnen.} gxf4 {[%emt 0:00:38]} 25. Qxf4 {[%emt 0:00:06]} Nxe5 {[%emt 0:00:24]} 26. Bh7 {[%emt 0:00:36] OK} (26. Qxh6 Nxd3 27. Nb6 Qc5 (27... Qd8 28. Nxe6 Bxe6 29. Qxe6 $18) 28. Nxa8 Bxd4 (28... Qxd4 29. cxd3 Qxd3 30. Nc7+ Kd8 31. Rf8+ Kxc7 32. Rc1+ Kd6 33. Rxg8 $11) 29. Qh5+ Rg6 30. cxd3 Qxa3 $14 (30... Bxb5 $2 {te hebberig.} 31. Rxb5 Qc6 32. a4 $18)) 26... N7g6 {[%emt 0:00:36] OK} 27. Bxg6+ {[%emt 0:00:07] Blunder waarde: Wit=0.36/Zwart=0.76.  Verliest partij:   	---       	Zwart=1      Gemiste overwinning: 	Wit=1      	---        Fout:        	---       	Zwart=5      Onnauwkeurig:    	Wit=6      	Zwart=2      OK:         	Wit=9      	Zwart=5      Beste:        	Wit=1      	Zwart=1      Sterk:        	---       	Zwart=2} (27. Qxh6 Qc4 28. Ne2 (28. Bxg6+ $2 Nxg6 29. Ne2 Qxa4 $19) 28... Rc8 $18) 1-0

[Event "Serbian League 2024"]
[Site "Bajina Basta"]
[Date "2024.09.30"]
[Round "4.32"]
[White "Yilmaz, Baver"]
[Black "Maksimovic, Bojan"]
[Result "0-1"]
[ECO "C01"]
[WhiteElo "2202"]
[BlackElo "2503"]
[Annotator "RC"]
[PlyCount "86"]
[EventDate "2024.09.26"]
[EventType "team-tourn"]
[EventCountry "SRB"]
[SourceTitle "playchess.com"]
[Source "ChessBase"]
[SourceQuality "1"]
[TimeControl "40/5400+30:1800+30"]

1. e4 a6 2. d4 e6 {[%emt 1:31:30]} 3. Nf3 d5 {[%emt 0:00:30]} 4. exd5 exd5 {[%emt 0:00:30]} 5. Bd3 Bd6 {[%emt 0:00:30]} 6. O-O Ne7 {[%emt 0:00:30]} 7. Re1 O-O 8. Nc3 Nbc6 {[%emt 0:01:00]} 9. a3 {[%emt 1:35:00]} h6 {[%emt 0:00:30]} 10. h3 {[%emt 0:00:30]} Be6 {[%emt 0:00:30]} 11. b4 {[%emt 0:00:30]} Qd7 {[%emt 0:00:30]} 12. b5 {[%emt 0:00:30]} axb5 {[%emt 0:00:30]} 13. Nxb5 {[%emt 0:00:30]} Bf5 {[%emt 0:00:30]} 14. Nxd6 {[%emt 0:00:30]} Qxd6 {[%emt 0:00:30]} 15. a4 {[%emt 0:00:30]} Bxd3 {[%emt 0:00:30]} 16. Qxd3 {[%emt 0:00:30]} Qg6 {[%emt 0:00:30]} 17. Qb3 {[%emt 0:00:30]} Na5 {[%emt 0:00:30]} 18. Qc3 {[%emt 0:00:30]} Qc6 {[%emt 0:00:30]} 19. Qd3 {[%emt 0:00:30]} Ng6 {[%emt 0:00:30]} 20. h4 {[%emt 0:00:30]} Rfe8 {[%emt 0:00:30]} 21. Rxe8+ {[%emt 0:00:30]} Qxe8 {[%emt 0:00:30]} 22. h5 {[%emt 0:00:30]} Nf8 {[%emt 0:00:30]} 23. Qb5 {[%emt 0:00:30]} c6 {[%emt 0:00:30]} 24. Qd3 {[%emt 0:00:30]} Nc4 {[%emt 0:00:30]} 25. Bd2 {[%emt 0:00:30]} f6 {[%emt 0:00:30]} 26. Re1 {[%emt 0:00:30]} Qxh5 {[%emt 0:00:30]} 27. Re7 {[%emt 0:00:30]} Rxa4 {[%emt 0:00:30]} 28. Rxb7 {[%emt 0:00:30]} Ra1+ {[%emt 0:00:30]} 29. Be1 {[%emt 0:00:30]} Qe8 {[%emt 0:00:30]} 30. Qc3 {[%emt 0:00:30]} Ra8 {[%emt 0:00:30]} 31. Qb4 {[%emt 0:00:30]} Ng6 {[%emt 0:00:30]} 32. Rc7 {[%emt 0:00:30]} Rc8 {[%emt 0:00:30]} 33. Rb7 {[%emt 0:00:30]} Qe6 {[%emt 0:00:30]} 34. Qc5 {[%emt 0:00:30]} Re8 {[%emt 0:00:30]} 35. Bb4 {[%emt 0:00:30]} Nf4 {[%emt 0:00:30]} 36. Qa7 {[%emt 0:00:30]} Qg4 {[%emt 0:00:30]} 37. Nh4 {[%emt 0:00:30]} Ne2+ {[%emt 0:00:30]} 38. Kf1 {[%emt 0:00:30]} Nxd4 {[%emt 0:00:30]} 39. Rxg7+ {[%emt 0:00:30]} Qxg7 {[%emt 0:00:30]} 40. Qxd4 {[%emt 0:00:30]} Re4 {[%emt 0:00:30]} 41. Qc5 {[%emt 0:30:30]} Rxh4 {[%emt 0:30:30]} 42. Qxc6 {[%emt 0:00:30]} Rh1+ {[%emt 0:00:30]} 43. Ke2 {[%emt 0:00:30]} Qg4+ {[%emt 0:00:30]} 0-1

[Event "Serbian League 2024"]
[Site "Bajina Basta"]
[Date "2024.09.30"]
[Round "4.33"]
[White "Pap, Misa"]
[Black "Szalai, Kornel"]
[Result "0-1"]
[ECO "B52"]
[WhiteElo "2389"]
[BlackElo "2388"]
[Annotator "RC"]
[PlyCount "104"]
[EventDate "2024.09.26"]
[EventType "team-tourn"]
[EventCountry "SRB"]
[SourceTitle "playchess.com"]
[Source "ChessBase"]
[SourceQuality "1"]
[TimeControl "40/5400+30:1800+30"]

1. e4 {[%emt 1:31:00]} c5 {[%emt 1:31:00]} 2. Nf3 {[%emt 0:00:30]} d6 {[%emt 0:00:30]} 3. Bb5+ {[%emt 0:00:30]} Bd7 {[%emt 0:00:30]} 4. Bxd7+ {[%emt 0:00:30]} Qxd7 {[%emt 0:00:30]} 5. c4 {[%emt 0:00:30]} Nf6 {[%emt 0:00:30]} 6. Nc3 {[%emt 0:00:30]} e6 {[%emt 0:00:30]} 7. d4 {[%emt 0:00:30]} cxd4 {[%emt 0:00:30]} 8. Nxd4 {[%emt 0:00:30]} Be7 {[%emt 0:00:30]} 9. Be3 {[%emt 0:00:30]} O-O {[%emt 0:00:30]} 10. Rc1 {[%emt 0:00:30]} Rc8 {[%emt 0:00:30]} 11. b3 {[%emt 0:00:30]} Nc6 {[%emt 0:00:30]} 12. O-O {[%emt 0:00:30]} Qd8 {[%emt 0:00:30]} 13. f3 {[%emt 0:00:30]} a6 {[%emt 0:00:30]} 14. Qe2 {[%emt 0:00:30]} Rab8 {[%emt 0:00:30]} 15. Rfd1 {[%emt 0:00:30]} Qa5 {[%emt 0:00:30]} 16. Qd2 {[%emt 0:00:30]} Kf8 {[%emt 0:00:30]} 17. a4 {[%emt 0:00:30]} Nd7 {[%emt 0:00:30]} 18. Rb1 {[%emt 0:00:30]} Nde5 {[%emt 0:00:30]} 19. Nde2 {[%emt 0:00:30]} Qb4 {[%emt 0:00:30]} 20. h3 {[%emt 0:00:30]} Nd7 {[%emt 0:00:30]} 21. Qc2 {[%emt 0:00:30]} Qa5 {[%emt 0:00:30]} 22. Kh1 {[%emt 0:00:30]} Kg8 {[%emt 0:00:30]} 23. Qd2 {[%emt 0:00:30]} Qb4 {[%emt 0:00:30]} 24. Qc1 {[%emt 0:00:30]} Qa5 {[%emt 0:00:30]} 25. f4 {[%emt 0:00:30]} Qc7 {[%emt 0:00:30]} 26. Qd2 {[%emt 0:00:30]} Rd8 {[%emt 0:00:30]} 27. Qe1 {[%emt 0:00:30]} Rbc8 {[%emt 0:00:30]} 28. Qf2 {[%emt 0:00:30]} Nb4 {[%emt 0:00:30]} 29. Nd4 {[%emt 0:00:30]} Bf6 {[%emt 0:00:30]} 30. Qf3 {[%emt 0:00:30]} Nc5 {[%emt 0:00:30]} 31. Bg1 {[%emt 0:00:30]} e5 {[%emt 0:00:30]} 32. Nde2 {[%emt 0:00:30]} exf4 {[%emt 0:00:30]} 33. Nxf4 {[%emt 0:00:30]} Bxc3 {[%emt 0:00:30]} 34. Qxc3 {[%emt 0:00:30]} a5 {[%emt 0:00:30]} 35. Re1 {[%emt 0:00:30]} Re8 {[%emt 0:00:30]} 36. Nd5 {[%emt 0:00:30]} Nxd5 {[%emt 0:00:30]} 37. exd5 {[%emt 0:00:30]} Ne4 {[%emt 0:00:30]} 38. Qe3 {[%emt 0:00:30]} Re5 {[%emt 0:00:30]} 39. Bh2 {[%emt 0:00:30]} Re7 {[%emt 0:00:30]} 40. c5 {[%emt 0:00:30]} Qxc5 {[%emt 0:00:30]} 41. Rec1 {[%emt 0:30:30]} Nf2+ {[%emt 0:30:30]} 42. Qxf2 {[%emt 0:00:30]} Qxc1+ {[%emt 0:00:30]} 43. Rxc1 {[%emt 0:00:30]} Rxc1+ {[%emt 0:00:30]} 44. Bg1 {[%emt 0:00:30]} Ree1 {[%emt 0:00:30]} 45. Qb6 {[%emt 0:00:30]} Rxg1+ {[%emt 0:00:30]} 46. Kh2 {[%emt 0:00:30]} h5 {[%emt 0:00:30]} 47. Qxd6 {[%emt 0:00:30]} Rgd1 {[%emt 0:00:30]} 48. Qe7 {[%emt 0:00:30]} Re1 {[%emt 0:00:30]} 49. Qd8+ {[%emt 0:00:30]} Kh7 {[%emt 0:00:30]} 50. Qg5 {[%emt 0:00:30]} g6 {[%emt 0:00:30]} 51. d6 {[%emt 0:00:30]} Rcd1 {[%emt 0:00:30]} 52. Qxa5 {[%emt 0:00:30]} h4 {[%emt 0:00:30]} 0-1

[Event "Serbian League 2024"]
[Site "Bajina Basta"]
[Date "2024.09.30"]
[Round "4.34"]
[White "Farkas, Tibor"]
[Black "Damljanovic, Branko"]
[Result "1/2-1/2"]
[ECO "B33"]
[WhiteElo "2209"]
[BlackElo "2354"]
[Annotator "RC"]
[PlyCount "109"]
[EventDate "2024.09.26"]
[EventType "team-tourn"]
[EventCountry "SRB"]
[SourceTitle "playchess.com"]
[Source "ChessBase"]
[SourceQuality "1"]
[TimeControl "40/5400+30:1800+30"]

1. e4 {[%emt 0:04:29]} c5 {[%emt 0:00:30]} 2. Nf3 {[%emt 0:01:16]} Nc6 {[%emt 0:00:19]} 3. d4 {[%emt 0:01:23]} cxd4 {[%emt 0:00:09]} 4. Nxd4 {[%emt 0:00:04]} Nf6 {[%emt 0:00:30]} 5. Nc3 {[%emt 0:00:21]} h5 {[%emt 0:01:07]} 6. f3 {[%emt 0:08:31]} e5 {[%emt 0:00:26]} 7. Nb3 {[%emt 0:12:05]} Bb4 {[%emt 0:03:47]} 8. Bd2 {[%emt 0:07:58]} Bxc3 {[%emt 0:07:24]} 9. Bxc3 {[%emt 0:00:24]} d5 {[%emt 0:00:01]} 10. exd5 {[%emt 0:06:58]} Nxd5 {[%emt 0:02:41]} 11. Qd2 {[%emt 0:00:28]} Nxc3 {[%emt 0:03:10]} 12. Qxc3 {[%emt 0:00:48]} O-O {[%emt 0:00:08]} 13. Bd3 {[%emt 0:09:46]} Qh4+ {[%emt 0:03:44]} 14. g3 {[%emt 0:02:10]} Qg5 {[%emt 0:01:13]} 15. Qd2 {[%emt 0:06:50]} Qxd2+ {[%emt 0:04:29]} 16. Nxd2 {[%emt 0:11:23]} Nb4 {[%emt 0:00:37]} 17. Ke2 {[%emt 0:00:29]} Rd8 {[%emt 0:02:30]} 18. Rhd1 {[%emt 0:03:08]} b6 {[%emt 0:06:16]} 19. Ne4 {[%emt 0:03:36]} Nxd3 {[%emt 0:08:59]} 20. cxd3 {[%emt 0:00:04]} Ba6 {[%emt 0:00:28]} 21. Rac1 {[%emt 0:00:30]} Rd7 {[%emt 0:00:29]} 22. Rc3 {[%emt 0:07:42]} Rad8 {[%emt 0:00:36]} 23. h4 {[%emt 0:03:42]} f6 {[%emt 0:05:19]} 24. Rd2 {[%emt 0:01:53]} Bb5 {[%emt 0:01:55]} 25. Rb3 {[%emt 0:01:19]} a6 {[%emt 0:06:06]} 26. Rc3 {[%emt 0:00:23]} Kf7 {[%emt 0:00:11]} 27. Ke3 {[%emt 0:01:40]} Ke7 {[%emt 0:00:50]} 28. b3 {[%emt 0:00:29]} a5 {[%emt 0:00:28]} 29. a3 {[%emt 0:00:48]} Ba6 {[%emt 0:02:36]} 30. Nf2 {[%emt 0:01:18]} Bb7 {[%emt 0:00:22]} 31. f4 {[%emt 0:00:52]} Ke6 {[%emt 0:01:01]} 32. fxe5 {[%emt 0:00:40]} Kxe5 {[%emt 0:01:45]} 33. Re2 {[%emt 0:00:34]} Kf5 {[%emt 0:00:55]} 34. Rc4 {[%emt 0:00:46]} g5 {[%emt 0:03:33]} 35. hxg5 {[%emt 0:00:12]} fxg5 {[%emt 0:00:02]} 36. Kd2 {[%emt 0:00:57]} Bd5 {[%emt 0:08:28]} 37. Rc3 {[%emt 0:00:17]} g4 {[%emt 0:00:25]} 38. d4 {[%emt 0:02:05]} Bf3 {[%emt 0:00:39]} 39. Re5+ {[%emt 0:00:01]} Kg6 {[%emt 0:00:12]} 40. Rce3 {[%emt 0:00:23]} Rxd4+ {[%emt 0:00:33]} 41. Kc3 {[%emt 0:30:26]} R4d5 {[%emt 0:45:43]} 42. Nd3 {[%emt 0:00:00]} Rc8+ {[%emt 0:00:00]} 43. Kb2 {[%emt 0:00:00]} Rxe5 {[%emt 0:00:00]} 44. Nxe5+ {[%emt 0:00:00]} Kg5 {[%emt 0:00:00]} 45. Nxf3+ {[%emt 0:00:00]} gxf3 {[%emt 0:00:00]} 46. Rxf3 {[%emt 0:00:00]} Rc5 {[%emt 0:00:00]} 47. a4 {[%emt 0:00:00]} Rf5 {[%emt 0:00:00]} 48. Rd3 {[%emt 0:00:00]} Kg4 {[%emt 0:00:00]} 49. Rd6 {[%emt 0:00:00]} Kxg3 {[%emt 0:00:00]} 50. Rg6+ {[%emt 0:00:00]} Kf4 {[%emt 0:00:00]} 51. Rxb6 {[%emt 0:00:00]} h4 {[%emt 0:00:00]} 52. b4 {[%emt 0:00:00]} axb4 {[%emt 0:00:00]} 53. Kb3 {[%emt 0:01:26]} h3 {[%emt 0:00:00]} 54. Rh6 {[%emt 0:01:37]} Kg3 {[%emt 0:00:00]} 55. Kxb4 {[%emt 0:01:09]} 1/2-1/2

[Event "Serbian League 2024"]
[Site "Bajina Basta"]
[Date "2024.09.30"]
[Round "4.35"]
[White "Ivanovic, Marko"]
[Black "Juhasz, Bence R"]
[Result "1-0"]
[ECO "B23"]
[WhiteElo "2240"]
[BlackElo "2266"]
[Annotator "RC"]
[PlyCount "89"]
[EventDate "2024.09.26"]
[EventType "team-tourn"]
[EventCountry "SRB"]
[SourceTitle "playchess.com"]
[Source "ChessBase"]
[SourceQuality "1"]
[TimeControl "40/5400+30:1800+30"]

1. e4 {[%emt 0:03:24]} c5 {[%emt 0:01:06]} 2. Nc3 {[%emt 0:02:44]} d6 {[%emt 0:00:26]} 3. d4 {[%emt 0:00:14]} cxd4 {[%emt 0:04:24]} 4. Qxd4 {[%emt 0:00:16]} Nc6 {[%emt 0:00:08]} 5. Qd2 {[%emt 0:00:04]} g6 {[%emt 0:01:04]} 6. b3 {[%emt 0:00:34]} Bh6 {[%emt 0:00:17]} 7. f4 {[%emt 0:00:07]} Nf6 {[%emt 0:00:30]} 8. Bb2 {[%emt 0:00:08]} e5 {[%emt 0:00:25]} 9. g3 {[%emt 0:00:54]} O-O {[%emt 0:00:15]} 10. O-O-O {[%emt 0:00:11]} Re8 {[%emt 0:00:10]} 11. Kb1 {[%emt 0:00:06]} Nd4 {[%emt 0:09:16]} 12. Qf2 {[%emt 0:01:13]} Bg4 {[%emt 0:05:22]} 13. Re1 {[%emt 0:00:09]} Bd7 {[%emt 0:08:34]} 14. h3 {[%emt 0:05:29]} b5 {[%emt 0:04:24]} 15. fxe5 {[%emt 0:00:20]} dxe5 {[%emt 0:00:14]} 16. Bd3 {[%emt 0:00:18]} b4 {[%emt 0:20:41]} 17. Nce2 {[%emt 0:03:56]} Nc6 {[%emt 0:02:40]} 18. g4 {[%emt 0:01:37]} Be6 {[%emt 0:08:52]} 19. Nf3 {[%emt 0:01:12]} Nd7 {[%emt 0:01:11]} 20. Ng3 {[%emt 0:15:14]} Qb6 {[%emt 0:06:06]} 21. Qxb6 {[%emt 0:01:49]} axb6 {[%emt 0:00:12]} 22. Bb5 {[%emt 0:03:37]} Rec8 {[%emt 0:03:36]} 23. Nf5 {[%emt 0:07:00]} Bf8 {[%emt 0:06:49]} 24. Ne3 {[%emt 0:11:12]} Ra5 {[%emt 0:03:40]} 25. Bc4 {[%emt 0:00:23]} Bc5 {[%emt 0:03:50]} 26. Bxe6 {[%emt 0:01:11]} fxe6 {[%emt 0:00:01]} 27. Nc4 {[%emt 0:00:07]} Ra7 {[%emt 0:00:44]} 28. Rd1 {[%emt 0:01:50]} Rca8 {[%emt 0:00:56]} 29. Rd3 {[%emt 0:03:32]} Nf6 {[%emt 0:00:39]} 30. Re1 {[%emt 0:07:21]} Rxa2 {[%emt 0:01:01]} 31. Nfxe5 {[%emt 0:00:30]} Rxb2+ {[%emt 0:02:11]} 32. Kxb2 {[%emt 0:00:35]} Bd4+ {[%emt 0:00:05]} 33. Rxd4 {[%emt 0:00:04]} Nxd4 {[%emt 0:00:04]} 34. Nxb6 {[%emt 0:00:30]} Ra6 {[%emt 0:02:45]} 35. Na4 {[%emt 0:02:34]} Ra5 {[%emt 0:03:36]} 36. Nd3 {[%emt 0:00:28]} Nc6 {[%emt 0:00:06]} 37. Nac5 {[%emt 0:00:16]} Kf7 {[%emt 0:00:42]} 38. g5 {[%emt 0:00:45]} Nh5 {[%emt 0:00:26]} 39. e5 {[%emt 0:05:36]} Ng3 {[%emt 0:00:57]} 40. Nb7 {[%emt 0:02:20]} Rd5 {[%emt 0:00:35]} 41. Nd6+ {[%emt 0:30:27]} Ke7 {[%emt 0:30:28]} 42. Nc4 {[%emt 0:00:07]} Rd8 {[%emt 0:00:58]} 43. Ra1 {[%emt 0:00:19]} Ne2 {[%emt 0:00:13]} 44. Ra6 {[%emt 0:02:02]} Ned4 {[%emt 0:00:04]} 45. Rb6 {[%emt 0:00:15]} 1-0